[Event "55th Biel Festival MTO 2022"]
[Site "Biel"]
[Date "2022.07.22"]
[Round "9.34"]
[White "Jaksland, Tim"]
[Black "Dauth, Benjamin"]
[Result "1/2-1/2"]
[ECO "C55"]
[WhiteElo "2149"]
[BlackElo "2243"]
[Annotator "TA"]
[PlyCount "56"]
[EventDate "2022.07.13"]
[EventType "swiss"]
[EventCountry "SUI"]
[SourceTitle "playchess.com"]
[Source "ChessBase"]
[SourceQuality "1"]
[TimeControl "40/5400+30:1800+30"]

{[%evp 12,56,45,36,43,32,27,53,35,38,28,22,8,4,10,2,8,13,13,-5,0,-12,0,-15,0,-15,0,-25,20,0,11,-18,17,-46,0,-23,0,-14,0,-22,11,0,0,-21,0,0,26]} 1. e4 {[%emt 0:00:04]} e5 {[%emt 0:00:06]} 2. Nf3 {[%emt 0:00:06]} Nc6 {[%emt 0:00:05]} 3. Bc4 {[%emt 0:00:06]} Nf6 {[%emt 0:00:12]} 4. d3 {[%emt 0:00:50]} Be7 {[%emt 0:00:44]} 5. O-O {[%emt 0:00:54]} O-O {[%emt 0:00:06]} 6. Re1 {[%emt 0:01:07]} d6 {[%emt 0:00:08]} 7. a3 {[%emt 0:02:02][%cal Ba2a3,Ba3a4,Ba4a5][%mdl 32]} Nd7 {[%emt 0:00:13] [#] C55: Two Knights: 4 d3, 4 d4 exd4 5 e5 and Max Lange Attack.} 8. c3 $146 {[%emt 0:03:06]} ({Predecessor:} 8. Nc3 Nb6 9. Ba2 Kh8 10. b4 Bg4 11. h3 Bxf3 12. Qxf3 Nd4 13. Qd1 Bg5 14. Be3 c6 15. Rf1 {0-1 (95) Gajewski,G (2589)-Wojtaszek,R (2696) Kruszwica 2022}) 8... Nb6 {[%emt 0:00:55]} 9. Bb3 {[%emt 0:00:26]} Kh8 {[%emt 0:00:06] White is slightly better.} 10. a4 {[%emt 0:18:07]} f5 {[%emt 0:08:10]} 11. a5 {[%emt 0:10:56]} fxe4 {[%emt 0:00:56]} 12. dxe4 {[%emt 0:00:10]} Nd7 {[%emt 0:00:58]} 13. Be3 {[%emt 0:05:17][%cal Oa5a6]} Qe8 {[%emt 0:00:58]} 14. Nbd2 {[%emt 0:06:43]} Nf6 {[%emt 0:00:56]} 15. h3 {[%emt 0:07:35]} Nh5 {[%emt 0:04:52]} 16. Bc4 {[%emt 0:04:25][%cal Bb3c4,Bc4f1,Bf1g2][%mdl 32]} Nd8 {[%emt 0:02:55]} 17. Bf1 {[%emt 0:04:12]} Ne6 {[%emt 0:02:31]} 18. Kh2 {[%emt 0:04:50]} Bd7 {[%emt 0:00:14]} 19. g3 {[%emt 0:02:10]} Bc6 {[%emt 0:02:06]} 20. Bg2 {[%emt 0:03:59]} h6 {[%emt 0:00:36]} 21. Kg1 {[%emt 0:04:49]} Qg6 {[%emt 0:00:40]} 22. Nh2 {[%emt 0:00:58] [#]} ({White should try} 22. b4 $11) 22... Nf6 {[%emt 0:04:11]} (22... Nhf4 $1 $15) 23. Ng4 {[%emt 0:05:27]} Nh7 {[%emt 0:03:45]} (23... Bxe4 $2 24. Nxe4 Nxe4 25. Qd3 $18) ({Much less strong is} 23... Nxe4 24. Qb1 $16) 24. Nh2 {[%emt 0:00:20] The position is equal.} Bd7 {[%emt 0:02:40]} 25. h4 {[%emt 0:02:35] Inhibits Neg5.} Bc6 {[%emt 0:06:21]} (25... Nd8 $5 {[%cal Re7h4]}) 26. Qg4 {[%emt 0:01:32]} Qf7 {[%emt 0:03:12]} 27. Qe2 {[%emt 0:00:06]} Qg6 {[%emt 0:01:00]} 28. Qg4 {[%emt 0:00:06]} Qf7 {[%emt 0:02:22] Weighted Error Value: White=0.17 (very precise) /Black=0.13 (very precise)} 1/2-1/2

[Event "55th Biel Festival MTO 2022"]
[Site "Biel"]
[Date "2022.07.22"]
[Round "9.35"]
[White "Sadeghi, Hassan Roger"]
[Black "Kittler, Thorsten"]
[Result "1/2-1/2"]
[ECO "B23"]
[WhiteElo "2068"]
[BlackElo "2226"]
[Annotator "TA"]
[PlyCount "47"]
[EventDate "2022.07.13"]
[EventType "swiss"]
[EventCountry "SUI"]
[SourceTitle "playchess.com"]
[Source "ChessBase"]
[SourceQuality "1"]
[TimeControl "40/5400+30:1800+30"]

{[%evp 9,47,16,8,11,16,1,8,6,18,4,20,4,10,2,17,21,18,15,39,47,54,41,46,2,29,-8,-12,-26,-30,-27,0,-84,-57,-75,0,0,-4,10,37,26]} 1. e4 {[%emt 0:00:02]} c5 {[%emt 0:00:40]} 2. Nc3 {[%emt 0:00:32]} d6 {[%emt 0:00:10]} 3. Nge2 {[%emt 0:01:37]} a6 {[%emt 0:04:43]} 4. a4 {[%emt 0:02:24]} Nf6 {[%emt 0:00:41]} 5. g3 {[%emt 0:00:29]} g6 {[%emt 0:03:43]} 6. Bg2 {[%emt 0:01:11] B23: Closed Sicilian: Lines without g3.} Bg7 {[%emt 0:03:43]} 7. d3 {[%emt 0:00:39] [#]} O-O $146 {[%emt 0:01:06]} ({Predecessor:} 7... Nc6 8. O-O Be6 9. Re1 O-O 10. Nf4 Bg4 11. f3 Bd7 12. Be3 Qc8 13. Qc1 Nd4 14. Bxd4 cxd4 15. Ncd5 Nxd5 16. Nxd5 Qd8 17. a5 {0-1 (17) Cano,S-Hernandez,A Mexico City 1993}) 8. Bg5 {[%emt 0:01:26] The position is equal.} h6 {[%emt 0:04:30]} 9. Be3 {[%emt 0:00:18]} Nc6 {[%emt 0:01:06]} 10. h3 {[%emt 0:01:02]} Rb8 {[%emt 0:11:50]} 11. Qd2 {[%emt 0:05:30]} Kh7 {[%emt 0:00:10]} 12. f4 {[%emt 0:01:15]} Bd7 {[%emt 0:04:42]} 13. g4 {[%emt 0:06:43]} Rh8 {[%emt 0:01:55]} 14. O-O {[%emt 0:08:00]} Rf8 {[%emt 0:05:18]} 15. Qe1 {[%emt 0:05:57]} Ng8 {[%emt 0:06:17]} 16. Nd1 {[%emt 0:02:59]} Nd4 {[%emt 0:02:36]} 17. Qd2 {[%emt 0:13:01]} e6 {[%emt 0:08:56]} 18. Nc1 {[%emt 0:05:41]} f5 $1 {[%emt 0:01:13]} 19. c3 {[%emt 0:00:29]} Nc6 {[%emt 0:00:05]} (19... fxg4 {feels hotter.} 20. hxg4 e5 21. f5 Qh4) 20. d4 {[%emt 0:00:36]} (20. Ne2 $11 {keeps the balance.}) 20... cxd4 {[%emt 0:02:07]} 21. cxd4 {[%emt 0:00:02]} fxg4 {[%emt 0:21:52]} (21... fxe4 $17 {Strongly threatening ...d5.} 22. Bxe4 Nf6) 22. hxg4 $11 {[%emt 0:00:07]} e5 {[%emt 0:00:05]} 23. dxe5 {[%emt 0:01:51]} dxe5 {[%emt 0:00:07]} 24. f5 {[%emt 0:02:01] Weighted Error Value: White=0.17 (very precise) /Black=0.11 (very precise)} 1/2-1/2

[Event "55th Biel Festival MTO 2022"]
[Site "Biel"]
[Date "2022.07.22"]
[Round "9.36"]
[White "Kamber, Bruno"]
[Black "Foerster-Yialamas, Lucas"]
[Result "1/2-1/2"]
[ECO "C43"]
[WhiteElo "2225"]
[BlackElo "2147"]
[Annotator "TA"]
[PlyCount "33"]
[EventDate "2022.07.13"]
[EventType "swiss"]
[EventCountry "SUI"]
[SourceTitle "playchess.com"]
[Source "ChessBase"]
[SourceQuality "1"]
[TimeControl "40/5400+30:1800+30"]

{[%evp 11,33,20,36,0,1,-6,12,0,0,0,16,17,35,31,33,10,666,666,794,624,681,598,29989,1210]} 1. e4 {[%emt 0:01:12]} e5 {[%emt 0:00:10]} 2. Nf3 {[%emt 0:01:05]} Nf6 {[%emt 0:00:24]} 3. d4 {[%emt 0:00:10]} Nxe4 {[%emt 0:00:13]} 4. Bd3 {[%emt 0:00:24]} d5 {[%emt 0:00:07]} 5. Nxe5 {[%emt 0:00:19]} Nd7 {[%emt 0:00:13]} 6. Nxd7 {[%emt 0:01:21]} Bxd7 {[%emt 0:00:06]} 7. Qe2 {[%emt 0:00:23] [#] And now f3 would win. C43: Petroff Defence: 3 d4.} (7. O-O {seems wilder.} Bd6 8. c4 O-O 9. cxd5 f5 10. Nd2) 7... Qe7 {[%emt 0:06:16]} 8. Nd2 {[%emt 0:00:38][%cal Rd2e4]} Nxd2 {[%emt 0:00:26]} 9. Qxe7+ {[%emt 0:00:18] The position is equal.} Bxe7 {[%emt 0:00:07]} 10. Bxd2 {[%emt 0:00:06]} Bf6 {[%emt 0:01:48]} 11. c3 {[%emt 0:00:10]} O-O {[%emt 0:00:18]} 12. O-O-O {[%emt 0:01:21][%cal Ba1d1,Bd1e1,Be1e8][%mdl 32] [#]} b5 $146 {[%emt 0:05:22][%cal Ob5b4]} ({Predecessor:} 12... a5 13. h4 b5 14. Bg5 Bxg5+ 15. hxg5 g6 16. Rde1 Rfe8 17. Kd2 c6 18. Rxe8+ Rxe8 {½-½ (44) Kamber,B (2225)-Foerster Yialamas,L (2147) Biel 2022}) 13. h4 {[%emt 0:00:53][%cal Bh2h4,Bh4g5][%mdl 32]} (13. Bf4 $5 {[%cal Rf4c7]}) 13... Bg5 $2 {[%emt 0:10:43][%mdl 8192] [#] This move loses the game for Black.} 14. hxg5 $18 {[%emt 0:00:17]} g6 {[%emt 0:00:04]} 15. Rde1 {[%emt 0:00:50]} Rfe8 {[%emt 0:00:10]} 16. Rxe8+ {[%emt 0:01:19]} Kg7 {[%emt 0:22:01]} 17. Rxh7+ {[%emt 0:40:06][%mdl 32768] Weighted Error Value: White=0.35/Black=1.55. An unexpected result.} (17. Rxa8 $142 b4 18. cxb4 a5 19. bxa5 Bg4 20. a6 Bf5 21. Bxf5 h5 22. gxh6+ Kf6 23. h7) 1/2-1/2

[Event "55th Biel Festival MTO 2022"]
[Site "Biel"]
[Date "2022.07.22"]
[Round "9.37"]
[White "Collin, Moritz Valentin"]
[Black "Gomez Barrera, Javiera Belen"]
[Result "0-1"]
[ECO "E60"]
[WhiteElo "2129"]
[BlackElo "2210"]
[Annotator "TA"]
[PlyCount "70"]
[EventDate "2022.07.13"]
[EventType "swiss"]
[EventCountry "SUI"]
[SourceTitle "playchess.com"]
[Source "ChessBase"]
[SourceQuality "1"]
[TimeControl "40/5400+30:1800+30"]

{[%evp 9,70,12,21,18,16,17,3,20,18,-13,0,-16,0,-23,-20,-41,0,-49,-38,-55,-50,-88,-82,-79,-59,-74,-47,-68,-63,-130,-128,-119,-112,-111,-89,-110,-110,-115,-117,-262,-269,-315,-296,-463,-446,-448,-446,-488,-239,-390,-371,-604,-531,-807,-807,-807,-742,-712,-704,-995,-655,-29985,-29986]} 1. d4 {[%emt 0:00:04][%cal Bd2d4,Bd4d5][%mdl 32]} Nf6 {[%emt 0:00:42]} 2. c4 {[%emt 0:00:06]} g6 {[%emt 0:00:03]} 3. h4 {[%emt 0:00:04]} Bg7 {[%emt 0:00:41]} 4. Nc3 {[%emt 0:00:06]} Nc6 {[%emt 0:00:23]} 5. Nf3 {[%emt 0:08:16]} d6 {[%emt 0:01:14]} 6. d5 {[%emt 0:00:17] E60: King's Indian: Unusual lines and Fianchetto Variation without Nc3.} Nb8 {[%emt 0:00:41]} 7. e4 {[%emt 0:00:52] [#]} e6 $146 {[%emt 0:01:44]} ({Predecessor:} 7... Nbd7 8. Be2 Nc5 9. Qc2 a5 10. Be3 b6 11. Nd4 Bd7 12. O-O-O h5 13. f3 Qc8 {1-0 (46) Mendonca,L (2562)-Gupta,A (2606) chess24.com INT 2022}) 8. Be2 {[%emt 0:02:15] The position is equal.} O-O {[%emt 0:06:31]} 9. O-O {[%emt 0:06:09]} exd5 {[%emt 0:01:36]} 10. exd5 {[%emt 0:01:04]} Re8 {[%emt 0:14:04]} 11. Re1 {[%emt 0:05:26]} Na6 {[%emt 0:11:10]} 12. Be3 {[%emt 0:08:37]} Nc5 {[%emt 0:15:19][%cal Oe8e3]} (12... Rxe3 $5 13. fxe3 Nc5 $11) 13. Bxc5 {[%emt 0:08:16]} (13. Bd4 $11) 13... dxc5 $15 {[%emt 0:00:02]} 14. Nd2 {[%emt 0:04:17]} Bf5 {[%emt 0:16:53]} 15. Bf3 {[%emt 0:03:56]} Rxe1+ {[%emt 0:03:31]} 16. Qxe1 {[%emt 0:00:09]} Ng4 {[%emt 0:02:22]} 17. g3 {[%emt 0:08:05]} Qd7 {[%emt 0:05:55]} 18. Nde4 {[%emt 0:10:34]} Re8 {[%emt 0:03:44] [#] aiming for ...Bxc3.} 19. Qd2 {[%emt 0:11:04]} (19. Bxg4 $15 Bxg4 20. Qd2) 19... Ne5 $17 {[%emt 0:02:32][%csl LRc4,LRf3]} 20. Qf4 {[%emt 0:06:19]} Nxf3+ {[%emt 0:05:28]} (20... Nxc4 $2 21. Nxc5 Qc8 22. Qxc4 $18) 21. Qxf3 {[%emt 0:00:11]} Qe7 {[%emt 0:00:50][%cal Rf5e4]} 22. Nd2 {[%emt 0:04:59]} b6 {[%emt 0:01:34] Black is more active.} 23. a4 {[%emt 0:01:56]} h5 {[%emt 0:00:36]} 24. a5 {[%emt 0:01:18] Loses the game.} (24. Nf1 $17 {might work better.}) 24... bxa5 $19 {[%emt 0:01:55]} 25. Nb3 {[%emt 0:01:48]} Rb8 {[%emt 0:01:28]} 26. Nxa5 {[%emt 0:01:37]} (26. Qd1 $142) 26... Rxb2 {[%emt 0:00:24] [#] And now ...Rc2 would win.} 27. Nc6 {[%emt 0:01:04]} Qe8 {[%emt 0:01:19]} 28. Rc1 {[%emt 0:02:43]} Rb3 {[%emt 0:00:50]} (28... Bd4 $142 29. Rf1 Rc2) 29. Kh2 $2 {[%emt 0:01:01]} (29. Qe2 Qxe2 30. Nxe2) 29... a6 {[%emt 0:00:43]} 30. Na5 $2 {[%emt 0:01:01]} (30. Qe2 Qxe2 31. Nxe2) 30... Ra3 {[%emt 0:00:30]} 31. Nb7 {[%emt 0:00:22]} Qe5 {[%emt 0:00:42][%cal Ra3c3] Prevents d6.} 32. Nxc5 {[%emt 0:00:38]} Rxc3 {[%emt 0:00:27]} 33. Rxc3 {[%emt 0:00:30]} Qxc3 {[%emt 0:00:01]} 34. Qe2 {[%emt 0:01:01]} Qe5 {[%emt 0:00:19]} 35. Qa2 {[%emt 0:00:37]} Qe1 {[%emt 0:00:41] Against Qd2.  Weighted Error Value: White=0.92/Black=0.25 (precise)} 0-1

[Event "55th Biel Festival MTO 2022"]
[Site "Biel"]
[Date "2022.07.22"]
[Round "9.38"]
[White "Vasquez Toledo, Cristian"]
[Black "Louis, Thibault"]
[Result "1-0"]
[ECO "C55"]
[WhiteElo "2206"]
[BlackElo "2140"]
[Annotator "TA"]
[PlyCount "147"]
[EventDate "2022.07.13"]
[EventType "swiss"]
[EventCountry "SUI"]
[SourceTitle "playchess.com"]
[Source "ChessBase"]
[SourceQuality "1"]
[TimeControl "40/5400+30:1800+30"]

{[%evp 9,147,13,31,38,37,35,35,27,36,31,57,43,55,58,63,50,62,57,62,43,106,100,125,108,132,95,110,85,84,91,110,117,112,109,95,99,158,106,129,86,74,90,83,78,86,91,102,102,95,85,83,83,142,144,137,85,83,83,83,83,80,62,83,0,81,0,82,0,81,81,79,78,81,68,113,106,110,99,156,102,99,102,174,157,170,83,153,147,131,110,254,254,252,216,207,150,136,150,120,67,365,362,1188,1887,29966,29968,29967,29969,29969,29970,29968,29970,29970,29971,29971,29972,29972,29973,29973,29974,29974,29975,29971,29961,29970,29971,29972,29973,29978,29979,29981,29982,29982,29983,29983,29984,29986,29987,29987,29988]} 1. e4 {[%emt 0:00:05]} e5 {[%emt 0:08:54]} 2. Nf3 {[%emt 0:00:07]} Nc6 {[%emt 0:00:08]} 3. Bc4 {[%emt 0:00:03]} Nf6 {[%emt 0:00:07]} 4. d3 {[%emt 0:00:04]} h6 {[%emt 0:00:10]} 5. c3 {[%emt 0:01:14]} d6 {[%emt 0:02:46]} 6. a4 {[%emt 0:00:28][%cal Ba2a4,Ba4a5][%mdl 32] C55: Two Knights: 4 d3, 4 d4 exd4 5 e5 and Max Lange Attack.} g6 {[%emt 0:01:27]} 7. a5 {[%emt 0:00:11]} Bg7 {[%emt 0:04:18]} 8. O-O {[%emt 0:05:22] White is slightly better.} O-O {[%emt 0:00:28]} 9. Re1 {[%emt 0:04:14]} Qe7 {[%emt 0:04:36]} 10. Nbd2 {[%emt 0:06:49][%cal Bb1d2,Bd2f1,Bf1e3][%mdl 32]} Nd8 {[%emt 0:00:44]} 11. d4 {[%emt 0:01:50] [#]} Nh5 $146 {[%emt 0:05:15]} ({Predecessor:} 11... Nh7 12. Nf1 Ne6 13. a6 b6 14. Ne3 c6 15. d5 cxd5 16. Nxd5 Qd8 17. Nb4 Nf6 {0-1 (60) Novikova,A (2268)-Petrukhin,D (2412) Novosibirsk 2007}) 12. Nf1 {[%emt 0:01:54]} Ne6 {[%emt 0:01:01]} 13. Ne3 {[%emt 0:06:50]} c6 {[%emt 0:01:03]} 14. g3 {[%emt 0:03:24]} Ng5 {[%emt 0:06:34]} ({Black should try} 14... Nf6 $14) 15. Nxg5 $16 {[%emt 0:00:54]} hxg5 {[%emt 0:00:35]} 16. dxe5 {[%emt 0:27:15]} dxe5 {[%emt 0:04:48]} 17. Qe2 {[%emt 0:07:19]} Be6 {[%emt 0:05:57]} 18. Bxe6 {[%emt 0:03:49]} Qxe6 {[%emt 0:00:32]} 19. Qc4 {[%emt 0:00:36]} Qh3 {[%emt 0:05:18]} 20. a6 {[%emt 0:03:59]} b6 {[%emt 0:04:48]} 21. Qxc6 {[%emt 0:00:51]} Nf6 {[%emt 0:07:00]} 22. Qc4 {[%emt 0:01:34]} g4 {[%emt 0:02:39]} (22... Rad8 $142) 23. Qe2 {[%emt 0:07:42]} (23. Rd1 $142) 23... Nxe4 {[%emt 0:04:21]} 24. Qxg4 {[%emt 0:01:12]} Qxg4 {[%emt 0:00:50][%mdl 64] Remove Defender} 25. Nxg4 {[%emt 0:00:01]} f5 {[%emt 0:00:22]} 26. Ne3 {[%emt 0:00:06]} Nc5 {[%emt 0:01:51]} 27. Nd5 {[%emt 0:04:51]} Rfd8 {[%emt 0:02:15]} 28. Rd1 {[%emt 0:02:25]} Kf7 {[%emt 0:07:06]} 29. Bg5 {[%emt 0:00:03]} Rd7 {[%emt 0:01:53]} 30. Nb4 {[%emt 0:00:08] White is more active.} Ke6 {[%emt 0:01:45]} (30... Rc8 $142) 31. Rxd7 {[%emt 0:01:40]} Nxd7 {[%emt 0:00:30]} 32. Rd1 {[%emt 0:00:11]} (32. Nc6 $142 $1 {[%cal Rc6d8]}) 32... Rc8 {[%emt 0:00:46]} 33. Kf1 {[%emt 0:00:30]} Bf8 {[%emt 0:00:29]} 34. Nd3 {[%emt 0:01:34]} Bd6 {[%emt 0:01:47]} 35. Re1 {[%emt 0:01:50]} Kd5 {[%emt 0:00:41]} 36. Rd1 {[%emt 0:00:19][%cal Od3e5]} Ke6 {[%emt 0:04:48]} 37. Re1 {[%emt 0:02:11]} Kd5 $1 {[%emt 0:00:06]} 38. Rd1 {[%emt 0:00:08][%cal Od3e5] Hoping for Nxe5+!} Ke6 {[%emt 0:00:43]} 39. Ke2 {[%emt 0:00:30]} Rc4 {[%emt 0:07:34]} 40. Ra1 $1 {[%emt 0:00:08]} Kd5 {[%emt 0:01:29]} 41. Kd2 {[%emt 0:33:41]} Nc5 {[%emt 0:07:53]} 42. Nxc5 {[%emt 0:00:00]} Bxc5 {[%emt 0:00:20][%mdl 4096] Endgame KRB-KRB} 43. f3 {[%emt 0:00:00]} Kc6 {[%emt 0:09:53]} (43... e4 $142) 44. Bf6 {[%emt 0:00:00]} (44. Kc2 $142 $1) 44... Bd6 {[%emt 0:01:06]} 45. Kd3 {[%emt 0:00:00]} b5 {[%emt 0:06:09]} (45... Kd5 $16) 46. b3 $18 {[%emt 0:00:00]} Rc5 {[%emt 0:00:39] [#]} 47. g4 {[%emt 0:00:00]} (47. h4 $1 $18 {has better winning chances.}) 47... Kd5 {[%emt 0:04:02]} (47... Rd5+ $142 48. Ke2 fxg4) 48. gxf5 $16 {[%emt 0:00:00]} gxf5 {[%emt 0:00:11]} 49. h4 {[%emt 0:00:00]} e4+ {[%emt 0:01:54]} (49... Bf8 $16 {is a better defense.}) 50. fxe4+ $18 {[%emt 0:00:00]} fxe4+ {[%emt 0:00:03]} 51. Kc2 {[%emt 0:00:00]} Be5 {[%emt 0:01:10]} 52. Rd1+ {[%emt 0:00:00]} Kc6 {[%emt 0:02:34]} 53. Bxe5 {[%emt 0:00:00]} Rxe5 $16 {[%emt 0:00:02] KR-KR} 54. Rh1 {[%emt 0:00:00]} (54. Rg1 $16) 54... e3 $2 {[%emt 0:02:07][%mdl 8192] [#]} ({Black should play} 54... Rh5 $14) 55. Kd1 $1 $18 {[%emt 0:00:00] Black must now prevent h5.} ({Not} 55. h5 e2 56. Kd2 b4 $14) 55... Rc5 {[%emt 0:00:50]} (55... Rh5 56. Ke2 Kd6 57. Kxe3 Ke5) 56. h5 {[%emt 0:00:48][%cal Bh4h5,Bh5h6,Bh6h7][%mdl 32] aiming for h6.} Rxc3 {[%emt 0:00:02]} 57. h6 {[%emt 0:00:16] White mates.} Rd3+ {[%emt 0:00:39]} 58. Ke2 {[%emt 0:00:01]} Rd8 {[%emt 0:00:16]} 59. h7 {[%emt 0:00:39]} Rh8 {[%emt 0:00:02]} 60. b4 {[%emt 0:00:24]} Kd5 {[%emt 0:00:28]} 61. Kd3 {[%emt 0:00:02]} e2 {[%emt 0:01:17]} 62. Rh5+ {[%emt 0:00:04]} Ke6 {[%emt 0:00:16]} 63. Kxe2 {[%emt 0:00:06]} Kf6 {[%emt 0:00:09]} 64. Kd3 {[%emt 0:01:12]} Kg7 {[%emt 0:00:27]} 65. Rxb5 {[%emt 0:00:08]} Rd8+ {[%emt 0:00:07]} 66. Kc4 {[%emt 0:00:16]} Kh8 {[%emt 0:00:06]} 67. Rc5 {[%emt 0:00:29]} Ra8 {[%emt 0:00:27]} 68. b5 {[%emt 0:01:38]} Rd8 {[%emt 0:00:51]} 69. Rc6 {[%emt 0:00:49]} Ra8 {[%emt 0:00:44]} 70. Kc5 {[%emt 0:00:30]} Rb8 {[%emt 0:00:27]} 71. b6 {[%emt 0:03:20]} axb6+ {[%emt 0:00:47]} 72. Kb5 {[%emt 0:00:11]} Re8 {[%emt 0:01:10]} 73. a7 {[%emt 0:00:10]} Ra8 {[%emt 0:00:42]} 74. Kxb6 {[%emt 0:00:10] Weighted Error Value: White=0.15 (very precise) /Black=0.36} 1-0